[Event "Titled Tuesday Blitz May 31 Late 2022"]
[White "Jovic, Stevan"]
[Black "Poormosavi, Seyed Kian"]
[WhiteFideId "923206"]
[BlackFideId "12585807"]
[WhiteElo "2203"]
[BlackElo "2222"]
[Result "1-0"]
[Round "02"]
[TimeControl "180+1"]
[Date "2022.06.01"]
[WhiteClock "0:00:14"]
[BlackClock "0:00:05"]

1. d4 {[%clk 0:03:00]}  Nf6 {[%clk 0:02:21]} 2. c4 {[%clk 0:02:59]}  e6 {[%clk 0:02:21]} 3. Nc3 {[%clk 0:02:59]}  Bb4 {[%clk 0:02:21]} 4. e3 {[%clk 0:02:58]}  O-O {[%clk 0:02:20]} 5. Nf3 {[%clk 0:02:58]}  Re8 {[%clk 0:02:20]} 6. Bd3 {[%clk 0:02:57]}  d6 {[%clk 0:02:15]} 7. O-O {[%clk 0:02:56]}  e5 {[%clk 0:02:15]} 8. dxe5 {[%clk 0:02:50]}  Bxc3 {[%clk 0:02:14]} 9. bxc3 {[%clk 0:02:49]}  dxe5 {[%clk 0:02:14]} 10. Nxe5 {[%clk 0:02:47]}  Na6 {[%clk 0:02:11]} 11. Nf3 {[%clk 0:02:44]}  Bg4 {[%clk 0:02:11]} 12. Be2 {[%clk 0:02:43]}  Ne4 {[%clk 0:02:09]} 13. Bb2 {[%clk 0:02:41]}  Nac5 {[%clk 0:02:06]} 14. Qc2 {[%clk 0:02:29]}  Qf6 {[%clk 0:01:42]} 15. Rad1 {[%clk 0:02:22]}  Rad8 {[%clk 0:01:39]} 16. Rd4 {[%clk 0:02:13]}  Qg6 {[%clk 0:01:33]} 17. Rfd1 {[%clk 0:02:05]}  Rd6 {[%clk 0:01:28]} 18. Ba3 {[%clk 0:01:33]}  b6 {[%clk 0:01:28]} 19. Nh4 {[%clk 0:01:27]}  Qh5 {[%clk 0:01:25]} 20. Bxg4 {[%clk 0:01:26]}  Qxg4 {[%clk 0:01:26]} 21. Bxc5 {[%clk 0:01:17]}  bxc5 {[%clk 0:01:27]} 22. Rxd6 {[%clk 0:01:14]}  Nxd6 {[%clk 0:01:25]} 23. Nf3 {[%clk 0:01:08]}  Qxc4 {[%clk 0:01:25]} 24. Qb3 {[%clk 0:01:05]}  Qxb3 {[%clk 0:01:14]} 25. axb3 {[%clk 0:01:06]}  Rb8 {[%clk 0:01:13]} 26. Rb1 {[%clk 0:01:02]}  c4 {[%clk 0:01:12]} 27. b4 {[%clk 0:01:02]}  a5 {[%clk 0:01:12]} 28. Ne5 {[%clk 0:00:59]}  c5 {[%clk 0:01:00]} 29. Nc6 {[%clk 0:00:56]}  Rb6 {[%clk 0:00:59]} 30. Nxa5 {[%clk 0:00:52]}  f5 {[%clk 0:00:53]} 31. f3 {[%clk 0:00:46]}  Kf7 {[%clk 0:00:36]} 32. Kf2 {[%clk 0:00:45]}  Ke6 {[%clk 0:00:35]} 33. Ke2 {[%clk 0:00:42]}  g5 {[%clk 0:00:33]} 34. Kd2 {[%clk 0:00:42]}  h5 {[%clk 0:00:32]} 35. Kc2 {[%clk 0:00:42]}  cxb4 {[%clk 0:00:31]} 36. Rxb4 {[%clk 0:00:38]}  Ra6 {[%clk 0:00:30]} 37. Nxc4 {[%clk 0:00:35]}  Nxc4 {[%clk 0:00:28]} 38. Rxc4 {[%clk 0:00:36]}  Ra2+ {[%clk 0:00:29]} 39. Kd3 {[%clk 0:00:36]}  Rxg2 {[%clk 0:00:29]} 40. h4 {[%clk 0:00:37]}  g4 {[%clk 0:00:29]} 41. fxg4 {[%clk 0:00:36]}  fxg4 {[%clk 0:00:28]} 42. Rc5 {[%clk 0:00:35]}  Rf2 {[%clk 0:00:19]} 43. Rxh5 {[%clk 0:00:35]}  g3 {[%clk 0:00:20]} 44. Rg5 {[%clk 0:00:35]}  g2 {[%clk 0:00:21]} 45. h5 {[%clk 0:00:35]}  Kf6 {[%clk 0:00:20]} 46. Rg3 {[%clk 0:00:34]}  Ke5 {[%clk 0:00:14]} 47. h6 {[%clk 0:00:33]}  Rf6 {[%clk 0:00:11]} 48. Rxg2 {[%clk 0:00:29]}  Rxh6 {[%clk 0:00:12]} 49. Rg5+ {[%clk 0:00:29]}  Kd6 {[%clk 0:00:12]} 50. c4 {[%clk 0:00:29]}  Rh4 {[%clk 0:00:13]} 51. e4 {[%clk 0:00:27]}  Rh1 {[%clk 0:00:13]} 52. Rd5+ {[%clk 0:00:27]}  Kc6 {[%clk 0:00:13]} 53. Kd4 {[%clk 0:00:27]}  Rd1+ {[%clk 0:00:13]} 54. Ke5 {[%clk 0:00:27]}  Rc1 {[%clk 0:00:14]} 55. Rd8 {[%clk 0:00:23]}  Kc7 {[%clk 0:00:13]} 56. Rd4 {[%clk 0:00:22]}  Kc6 {[%clk 0:00:14]} 57. Ke6 {[%clk 0:00:21]}  Kc5 {[%clk 0:00:14]} 58. Rd8 {[%clk 0:00:21]}  Re1 {[%clk 0:00:13]} 59. e5 {[%clk 0:00:18]}  Kxc4 {[%clk 0:00:13]} 60. Kf6 {[%clk 0:00:17]}  Kc5 {[%clk 0:00:13]} 61. e6 {[%clk 0:00:17]}  Rf1+ {[%clk 0:00:11]} 62. Ke7 {[%clk 0:00:17]}  Kc6 {[%clk 0:00:11]} 63. Rc8+ {[%clk 0:00:17]}  Kd5 {[%clk 0:00:10]} 64. Rc2 {[%clk 0:00:17]}  Re1 {[%clk 0:00:09]} 65. Rd2+ {[%clk 0:00:17]}  Kc6 {[%clk 0:00:09]} 66. Kf7 {[%clk 0:00:18]}  Rf1+ {[%clk 0:00:09]} 67. Ke8 {[%clk 0:00:18]}  Kc7 {[%clk 0:00:09]} 68. e7 {[%clk 0:00:17]}  Rf3 {[%clk 0:00:09]} 69. Rc2+ {[%clk 0:00:15]}  Kb7 {[%clk 0:00:05]} 70. Rc4 {[%clk 0:00:14]}  Kb6 {[%clk 0:00:03]} 71. Kd7 {[%clk 0:00:15]}  Rd3+ {[%clk 0:00:03]} 72. Ke6 {[%clk 0:00:15]}  Re3+ {[%clk 0:00:03]} 73. Kd6 {[%clk 0:00:14]}  Kb5 {[%clk 0:00:03]} 74. Rc8 {[%clk 0:00:13]}  Rd3+ {[%clk 0:00:03]} 75. Ke6 {[%clk 0:00:13]}  Re3+ {[%clk 0:00:03]} 76. Kf6 {[%clk 0:00:14]}  Rf3+ {[%clk 0:00:03]} 77. Kg5 {[%clk 0:00:14]}  Rg3+ {[%clk 0:00:04]} 78. Kf4 {[%clk 0:00:14]}  Re3 {[%clk 0:00:05]} 79. Kxe3 {[%clk 0:00:14]} 1-0


[Site "https://www.chess.com"]

[Event "Titled Tuesday Blitz May 31 Late 2022"]
[White "Kobalia, Mikhail"]
[Black "Rios Escobar, Adan"]
[WhiteFideId "4119150"]
[BlackFideId "3403645"]
[WhiteElo "2667"]
[BlackElo "2424"]
[Result "1/2-1/2"]
[Round "02"]
[TimeControl "180+1"]
[Date "2022.06.01"]
[WhiteClock "0:00:08"]
[BlackClock "0:00:09"]

1. e4 {[%clk 0:03:00]}  c5 {[%clk 0:02:50]} 2. Nf3 {[%clk 0:03:00]}  d6 {[%clk 0:02:50]} 3. c3 {[%clk 0:02:58]}  Nf6 {[%clk 0:02:47]} 4. h3 {[%clk 0:02:57]}  Nc6 {[%clk 0:02:40]} 5. Bd3 {[%clk 0:02:57]}  d5 {[%clk 0:02:37]} 6. e5 {[%clk 0:02:56]}  Nd7 {[%clk 0:02:38]} 7. Qe2 {[%clk 0:02:56]}  e6 {[%clk 0:02:33]} 8. Bb5 {[%clk 0:02:56]}  Qb6 {[%clk 0:02:32]} 9. O-O {[%clk 0:02:54]}  c4 {[%clk 0:02:28]} 10. Bxc6 {[%clk 0:02:52]}  bxc6 {[%clk 0:02:24]} 11. Re1 {[%clk 0:02:44]}  Ba6 {[%clk 0:02:18]} 12. Qd1 {[%clk 0:02:42]}  Bc5 {[%clk 0:02:15]} 13. Qe2 {[%clk 0:02:34]}  O-O {[%clk 0:02:13]} 14. Na3 {[%clk 0:02:34]}  Bxa3 {[%clk 0:01:58]} 15. bxa3 {[%clk 0:02:34]}  Nc5 {[%clk 0:01:56]} 16. a4 {[%clk 0:02:30]}  Nd3 {[%clk 0:01:53]} 17. Rd1 {[%clk 0:02:30]}  Qc5 {[%clk 0:01:44]} 18. Ne1 {[%clk 0:02:27]}  Rfb8 {[%clk 0:01:36]} 19. Qe3 {[%clk 0:02:26]}  Rb7 {[%clk 0:01:23]} 20. Qxc5 {[%clk 0:02:23]}  Nxc5 {[%clk 0:01:22]} 21. Ba3 {[%clk 0:02:24]}  Nd3 {[%clk 0:01:19]} 22. Bd6 {[%clk 0:02:23]}  f6 {[%clk 0:01:13]} 23. Nxd3 {[%clk 0:02:22]}  cxd3 {[%clk 0:01:13]} 24. Rab1 {[%clk 0:02:23]}  Rd8 {[%clk 0:00:53]} 25. Rxb7 {[%clk 0:02:20]}  Bxb7 {[%clk 0:00:53]} 26. Rb1 {[%clk 0:02:21]}  Rd7 {[%clk 0:00:51]} 27. f4 {[%clk 0:02:20]}  Kf7 {[%clk 0:00:50]} 28. Kf2 {[%clk 0:02:20]}  h5 {[%clk 0:00:48]} 29. Ke3 {[%clk 0:02:20]}  Ba6 {[%clk 0:00:49]} 30. Kd4 {[%clk 0:02:19]}  Bc4 {[%clk 0:00:46]} 31. Kc5 {[%clk 0:02:14]}  Ke8 {[%clk 0:00:31]} 32. Kxc6 {[%clk 0:02:12]}  Bxa2 {[%clk 0:00:29]} 33. Rb8+ {[%clk 0:02:07]}  Rd8 {[%clk 0:00:29]} 34. Rb7 {[%clk 0:02:07]}  d4 {[%clk 0:00:27]} 35. Re7+ {[%clk 0:02:03]}  Kf8 {[%clk 0:00:27]} 36. Rxa7+ {[%clk 0:02:03]}  Kg8 {[%clk 0:00:25]} 37. cxd4 {[%clk 0:02:02]}  Bd5+ {[%clk 0:00:23]} 38. Kb6 {[%clk 0:01:57]}  Bxg2 {[%clk 0:00:20]} 39. h4 {[%clk 0:01:56]}  g5 {[%clk 0:00:16]} 40. fxg5 {[%clk 0:01:51]}  fxg5 {[%clk 0:00:16]} 41. Be7 {[%clk 0:01:51]}  Rb8+ {[%clk 0:00:15]} 42. Kc7 {[%clk 0:01:51]}  gxh4 {[%clk 0:00:09]} 43. Bxh4 {[%clk 0:01:26]}  Rb2 {[%clk 0:00:08]} 44. Kd6 {[%clk 0:01:06]}  Bd5 {[%clk 0:00:08]} 45. Bg5 {[%clk 0:00:47]}  h4 {[%clk 0:00:09]} 46. Bxh4 {[%clk 0:00:41]}  Rxd2 {[%clk 0:00:09]} 47. Rc7 {[%clk 0:00:33]}  Ra2 {[%clk 0:00:09]} 48. Bg5 {[%clk 0:00:25]}  d2 {[%clk 0:00:09]} 49. Bxd2 {[%clk 0:00:25]}  Rxd2 {[%clk 0:00:10]} 50. a5 {[%clk 0:00:25]}  Ra2 {[%clk 0:00:10]} 51. Ra7 {[%clk 0:00:24]}  Kf8 {[%clk 0:00:09]} 52. a6 {[%clk 0:00:24]}  Bc4 {[%clk 0:00:09]} 53. Rc7 {[%clk 0:00:20]}  Bxa6 {[%clk 0:00:08]} 54. Kxe6 {[%clk 0:00:20]}  Be2 {[%clk 0:00:06]} 55. d5 {[%clk 0:00:20]}  Bg4+ {[%clk 0:00:07]} 56. Kf6 {[%clk 0:00:18]}  Rf2+ {[%clk 0:00:07]} 57. Kg5 {[%clk 0:00:18]}  Rf5+ {[%clk 0:00:08]} 58. Kxg4 {[%clk 0:00:17]}  Rxe5 {[%clk 0:00:08]} 59. Rc5 {[%clk 0:00:17]}  Ke7 {[%clk 0:00:08]} 60. Kf4 {[%clk 0:00:17]}  Kd6 {[%clk 0:00:08]} 61. Rc6+ {[%clk 0:00:07]}  Kxd5 {[%clk 0:00:09]} 62. Rc5+ {[%clk 0:00:07]}  Kxc5 {[%clk 0:00:09]} 63. Kxe5 {[%clk 0:00:08]} 1/2-1/2


[Site "https://www.chess.com"]

[Event "Titled Tuesday Blitz May 31 Late 2022"]
[White "Kovacevic, Radmila"]
[Black "Mortazavi, Ali"]
[WhiteFideId "933171"]
[BlackFideId "401323"]
[WhiteElo "2115"]
[BlackElo "2339"]
[Result "0-1"]
[Round "02"]
[TimeControl "180+1"]
[Date "2022.06.01"]
[WhiteClock "0:00:03"]
[BlackClock "0:00:06"]

1. e4 {[%clk 0:02:57]}  c6 {[%clk 0:02:59]} 2. d4 {[%clk 0:02:56]}  d5 {[%clk 0:03:00]} 3. e5 {[%clk 0:02:57]}  Bf5 {[%clk 0:03:01]} 4. Be3 {[%clk 0:02:54]}  e6 {[%clk 0:03:01]} 5. c3 {[%clk 0:02:51]}  Ne7 {[%clk 0:02:47]} 6. Nd2 {[%clk 0:02:47]}  h5 {[%clk 0:02:40]} 7. Ngf3 {[%clk 0:02:41]}  Ng6 {[%clk 0:02:40]} 8. Qb3 {[%clk 0:02:34]}  Qb6 {[%clk 0:02:37]} 9. h4 {[%clk 0:02:22]}  Be7 {[%clk 0:02:32]} 10. g3 {[%clk 0:02:20]}  Nd7 {[%clk 0:02:26]} 11. Nh2 {[%clk 0:02:16]}  c5 {[%clk 0:02:22]} 12. Bb5 {[%clk 0:02:10]}  c4 {[%clk 0:02:15]} 13. Qa4 {[%clk 0:01:57]}  Qd8 {[%clk 0:02:13]} 14. Qd1 {[%clk 0:01:46]}  a6 {[%clk 0:02:10]} 15. Ba4 {[%clk 0:01:46]}  b5 {[%clk 0:02:10]} 16. Bc2 {[%clk 0:01:46]}  Bxc2 {[%clk 0:02:11]} 17. Qxc2 {[%clk 0:01:46]}  b4 {[%clk 0:02:09]} 18. Ndf3 {[%clk 0:01:39]}  bxc3 {[%clk 0:01:58]} 19. bxc3 {[%clk 0:01:40]}  Qa5 {[%clk 0:01:57]} 20. Bg5 {[%clk 0:01:35]}  O-O {[%clk 0:01:48]} 21. g4 {[%clk 0:01:27]}  hxg4 {[%clk 0:01:29]} 22. Nxg4 {[%clk 0:01:25]}  Rfb8 {[%clk 0:00:56]} 23. h5 {[%clk 0:01:24]}  Bxg5 {[%clk 0:00:54]} 24. hxg6 {[%clk 0:01:19]}  Bf4 {[%clk 0:00:53]} 25. gxf7+ {[%clk 0:01:09]}  Kxf7 {[%clk 0:00:53]} 26. Nh4 {[%clk 0:01:07]}  Nf8 {[%clk 0:00:49]} 27. Rh3 {[%clk 0:01:02]}  Qa3 {[%clk 0:00:41]} 28. Rf3 {[%clk 0:00:47]}  g5 {[%clk 0:00:41]} 29. Rb1 {[%clk 0:00:40]}  Ke7 {[%clk 0:00:23]} 30. Ng2 {[%clk 0:00:35]}  Rxb1+ {[%clk 0:00:16]} 31. Qxb1 {[%clk 0:00:35]}  Rd8 {[%clk 0:00:08]} 32. Nxf4 {[%clk 0:00:32]}  gxf4 {[%clk 0:00:08]} 33. Nf6 {[%clk 0:00:30]}  Nd7 {[%clk 0:00:07]} 34. Nh5 {[%clk 0:00:26]}  Nf8 {[%clk 0:00:08]} 35. Nxf4 {[%clk 0:00:25]}  Kd7 {[%clk 0:00:07]} 36. Qb7+ {[%clk 0:00:23]}  Ke8 {[%clk 0:00:08]} 37. Nxe6 {[%clk 0:00:22]}  Qc1+ {[%clk 0:00:07]} 38. Ke2 {[%clk 0:00:21]}  Qc2+ {[%clk 0:00:07]} 39. Kf1 {[%clk 0:00:20]}  Qd1+ {[%clk 0:00:01]} 40. Kg2 {[%clk 0:00:20]}  Qxf3+ {[%clk 0:00:02]} 41. Kxf3 {[%clk 0:00:20]}  Nxe6 {[%clk 0:00:03]} 42. Qxa6 {[%clk 0:00:20]}  Ke7 {[%clk 0:00:02]} 43. Qa3+ {[%clk 0:00:17]}  Kf7 {[%clk 0:00:02]} 44. Qa7+ {[%clk 0:00:16]}  Kg6 {[%clk 0:00:03]} 45. Qe7 {[%clk 0:00:14]}  Rf8+ {[%clk 0:00:02]} 46. Kg3 {[%clk 0:00:13]}  Kf5 {[%clk 0:00:03]} 47. Qh7+ {[%clk 0:00:12]}  Kg5 {[%clk 0:00:04]} 48. f4+ {[%clk 0:00:08]}  Nxf4 {[%clk 0:00:04]} 49. Qg7+ {[%clk 0:00:08]}  Ng6 {[%clk 0:00:04]} 50. e6 {[%clk 0:00:07]}  Rf4 {[%clk 0:00:04]} 51. e7 {[%clk 0:00:06]}  Rg4+ {[%clk 0:00:04]} 52. Kf3 {[%clk 0:00:05]}  Rf4+ {[%clk 0:00:04]} 53. Ke2 {[%clk 0:00:04]}  Re4+ {[%clk 0:00:05]} 54. Kd2 {[%clk 0:00:05]}  Rxe7 {[%clk 0:00:06]} 55. Qg8 {[%clk 0:00:05]}  Ra7 {[%clk 0:00:05]} 56. Qxd5+ {[%clk 0:00:05]}  Kg4 {[%clk 0:00:05]} 57. Qxc4 {[%clk 0:00:05]}  Nf4 {[%clk 0:00:06]} 58. Qg8+ {[%clk 0:00:04]}  Kf3 {[%clk 0:00:06]} 59. d5 {[%clk 0:00:03]}  Rxa2+ {[%clk 0:00:06]} 60. Kc1 {[%clk 0:00:03]}  Ke3 {[%clk 0:00:06]} 0-1


[Site "https://www.chess.com"]

[Event "Titled Tuesday Blitz May 31 Late 2022"]
[White "Lehtosaari, Mauri"]
[Black "Wieczorek, Oskar"]
[WhiteFideId "501999"]
[BlackFideId "1133950"]
[WhiteElo "2430"]
[BlackElo "2330"]
[Result "1-0"]
[Round "02"]
[TimeControl "180+1"]
[Date "2022.06.01"]
[WhiteClock "0:00:16"]
[BlackClock "0:00:09"]

1. d4 {[%clk 0:02:55]}  Nf6 {[%clk 0:03:00]} 2. Nf3 {[%clk 0:02:54]}  c5 {[%clk 0:03:01]} 3. c3 {[%clk 0:02:54]}  g6 {[%clk 0:02:55]} 4. Bg5 {[%clk 0:02:39]}  cxd4 {[%clk 0:02:54]} 5. cxd4 {[%clk 0:02:38]}  Bg7 {[%clk 0:02:54]} 6. Nc3 {[%clk 0:02:37]}  O-O {[%clk 0:02:54]} 7. e3 {[%clk 0:02:37]}  d6 {[%clk 0:02:54]} 8. Be2 {[%clk 0:02:37]}  b6 {[%clk 0:02:54]} 9. O-O {[%clk 0:02:27]}  Bb7 {[%clk 0:02:55]} 10. Rc1 {[%clk 0:02:24]}  Nc6 {[%clk 0:02:55]} 11. a3 {[%clk 0:02:22]}  Rc8 {[%clk 0:02:54]} 12. b4 {[%clk 0:02:22]}  e6 {[%clk 0:02:45]} 13. d5 {[%clk 0:02:14]}  Ne7 {[%clk 0:02:36]} 14. dxe6 {[%clk 0:02:11]}  fxe6 {[%clk 0:02:37]} 15. Nb5 {[%clk 0:02:08]}  Rxc1 {[%clk 0:02:35]} 16. Qxc1 {[%clk 0:02:09]}  Ne4 {[%clk 0:02:20]} 17. Bh4 {[%clk 0:01:57]}  Qd7 {[%clk 0:02:08]} 18. Rd1 {[%clk 0:01:49]}  Nf5 {[%clk 0:02:06]} 19. Bg3 {[%clk 0:01:44]}  Nfxg3 {[%clk 0:02:03]} 20. hxg3 {[%clk 0:01:44]}  d5 {[%clk 0:01:58]} 21. Bd3 {[%clk 0:01:29]}  Rc8 {[%clk 0:01:53]} 22. Qb1 {[%clk 0:01:21]}  Nc3 {[%clk 0:01:37]} 23. Nxc3 {[%clk 0:01:16]}  Rxc3 {[%clk 0:01:36]} 24. Nd4 {[%clk 0:00:52]}  a6 {[%clk 0:01:17]} 25. b5 {[%clk 0:00:47]}  a5 {[%clk 0:01:14]} 26. a4 {[%clk 0:00:48]}  Bf6 {[%clk 0:00:53]} 27. Bxg6 {[%clk 0:00:39]}  hxg6 {[%clk 0:00:49]} 28. Qxg6+ {[%clk 0:00:39]}  Bg7 {[%clk 0:00:50]} 29. Nxe6 {[%clk 0:00:35]}  Qf7 {[%clk 0:00:50]} 30. Qxf7+ {[%clk 0:00:27]}  Kxf7 {[%clk 0:00:51]} 31. Nd8+ {[%clk 0:00:27]}  Ke7 {[%clk 0:00:52]} 32. Nxb7 {[%clk 0:00:28]}  Rc7 {[%clk 0:00:52]} 33. Rxd5 {[%clk 0:00:26]}  Rxb7 {[%clk 0:00:52]} 34. e4 {[%clk 0:00:24]}  Rc7 {[%clk 0:00:53]} 35. f4 {[%clk 0:00:24]}  Rc4 {[%clk 0:00:53]} 36. e5 {[%clk 0:00:25]}  Rxa4 {[%clk 0:00:53]} 37. Rd6 {[%clk 0:00:25]}  Rb4 {[%clk 0:00:38]} 38. Rxb6 {[%clk 0:00:25]}  Kf7 {[%clk 0:00:37]} 39. Kf2 {[%clk 0:00:24]}  Rb3 {[%clk 0:00:38]} 40. Ra6 {[%clk 0:00:22]}  Rxb5 {[%clk 0:00:37]} 41. Kf3 {[%clk 0:00:21]}  Bf8 {[%clk 0:00:29]} 42. Ke4 {[%clk 0:00:20]}  Bb4 {[%clk 0:00:29]} 43. Kf5 {[%clk 0:00:20]}  Bc3 {[%clk 0:00:20]} 44. Ra7+ {[%clk 0:00:19]}  Ke8 {[%clk 0:00:20]} 45. g4 {[%clk 0:00:19]}  Rb2 {[%clk 0:00:19]} 46. g3 {[%clk 0:00:19]}  Ra2 {[%clk 0:00:18]} 47. Ke6 {[%clk 0:00:19]}  Kd8 {[%clk 0:00:18]} 48. g5 {[%clk 0:00:18]}  Rg2 {[%clk 0:00:18]} 49. g6 {[%clk 0:00:16]}  Rxg3 {[%clk 0:00:18]} 50. f5 {[%clk 0:00:16]}  Re3 {[%clk 0:00:18]} 51. Rd7+ {[%clk 0:00:15]}  Kc8 {[%clk 0:00:17]} 52. Rd5 {[%clk 0:00:16]}  a4 {[%clk 0:00:17]} 53. g7 {[%clk 0:00:16]}  Rg3 {[%clk 0:00:17]} 54. f6 {[%clk 0:00:17]}  a3 {[%clk 0:00:17]} 55. Rc5+ {[%clk 0:00:16]}  Kb7 {[%clk 0:00:17]} 56. Rxc3 {[%clk 0:00:16]}  Rxc3 {[%clk 0:00:11]} 57. g8=Q {[%clk 0:00:16]}  Rc6+ {[%clk 0:00:09]} 58. Kd5 {[%clk 0:00:16]}  Ra6 {[%clk 0:00:09]} 59. Qg1 {[%clk 0:00:15]}  a2 {[%clk 0:00:09]} 60. Qa1 {[%clk 0:00:16]}  Kc7 {[%clk 0:00:09]} 61. f7 {[%clk 0:00:16]}  Ra8 {[%clk 0:00:09]} 62. e6 {[%clk 0:00:16]}  Ra5+ {[%clk 0:00:09]} 63. Ke4 {[%clk 0:00:16]}  Ra8 {[%clk 0:00:09]} 64. e7 {[%clk 0:00:16]}  Ra4+ {[%clk 0:00:09]} 65. Kd3 {[%clk 0:00:16]} 1-0


[Site "https://www.chess.com"]

[Event "Titled Tuesday Blitz May 31 Late 2022"]
[White "Maghsoodloo, Parham"]
[Black "Eynullayev, Atilla"]
[WhiteFideId "12539929"]
[BlackFideId "13413570"]
[WhiteElo "2630"]
[BlackElo "1936"]
[Result "1-0"]
[Round "02"]
[TimeControl "180+1"]
[Date "2022.05.31"]
[WhiteClock "0:00:44"]
[BlackClock "0:00:03"]

1. d4 {[%clk 0:03:00]}  Nf6 {[%clk 0:03:00]} 2. c4 {[%clk 0:03:01]}  e6 {[%clk 0:03:00]} 3. Nf3 {[%clk 0:03:01]}  d5 {[%clk 0:03:00]} 4. Nc3 {[%clk 0:03:01]}  c5 {[%clk 0:03:00]} 5. cxd5 {[%clk 0:03:00]}  cxd4 {[%clk 0:03:00]} 6. Qa4+ {[%clk 0:02:59]}  Bd7 {[%clk 0:03:01]} 7. Qxd4 {[%clk 0:03:00]}  exd5 {[%clk 0:03:01]} 8. Bg5 {[%clk 0:02:56]}  Be6 {[%clk 0:03:01]} 9. e3 {[%clk 0:02:53]}  Be7 {[%clk 0:03:00]} 10. Bb5+ {[%clk 0:02:53]}  Nc6 {[%clk 0:02:57]} 11. Qa4 {[%clk 0:02:53]}  Qb6 {[%clk 0:02:51]} 12. Nd4 {[%clk 0:02:48]}  O-O {[%clk 0:02:38]} 13. Nxe6 {[%clk 0:02:40]}  fxe6 {[%clk 0:02:38]} 14. O-O {[%clk 0:02:39]}  a6 {[%clk 0:02:34]} 15. Bxc6 {[%clk 0:02:39]}  bxc6 {[%clk 0:02:31]} 16. Qc2 {[%clk 0:02:39]}  c5 {[%clk 0:02:20]} 17. Rad1 {[%clk 0:02:35]}  Rac8 {[%clk 0:02:18]} 18. e4 {[%clk 0:02:32]}  d4 {[%clk 0:02:07]} 19. Na4 {[%clk 0:02:32]}  Qb5 {[%clk 0:01:57]} 20. b3 {[%clk 0:02:32]}  c4 {[%clk 0:01:57]} 21. Bxf6 {[%clk 0:02:21]}  Bxf6 {[%clk 0:01:58]} 22. e5 {[%clk 0:02:18]}  cxb3 {[%clk 0:01:23]} 23. Qxb3 {[%clk 0:02:16]}  Qxb3 {[%clk 0:01:23]} 24. axb3 {[%clk 0:02:16]}  Bxe5 {[%clk 0:01:23]} 25. Rfe1 {[%clk 0:02:17]}  Rf5 {[%clk 0:01:18]} 26. g4 {[%clk 0:02:06]}  Rg5 {[%clk 0:01:18]} 27. f3 {[%clk 0:02:06]}  Rc2 {[%clk 0:01:11]} 28. h4 {[%clk 0:02:04]}  Bh2+ {[%clk 0:01:12]} 29. Kh1 {[%clk 0:02:03]}  Re5 {[%clk 0:01:12]} 30. Rxe5 {[%clk 0:01:54]}  Bxe5 {[%clk 0:01:13]} 31. Kg1 {[%clk 0:01:50]}  Kf7 {[%clk 0:01:04]} 32. b4 {[%clk 0:01:42]}  Bf4 {[%clk 0:01:01]} 33. Nc5 {[%clk 0:01:40]}  Be3+ {[%clk 0:01:01]} 34. Kh1 {[%clk 0:01:40]}  e5 {[%clk 0:01:00]} 35. Ra1 {[%clk 0:01:37]}  Rc3 {[%clk 0:00:30]} 36. Ne4 {[%clk 0:01:20]}  Rb3 {[%clk 0:00:29]} 37. Rxa6 {[%clk 0:01:20]}  Rxb4 {[%clk 0:00:30]} 38. Ra7+ {[%clk 0:01:18]}  Kf8 {[%clk 0:00:30]} 39. Rd7 {[%clk 0:01:13]}  Bf4 {[%clk 0:00:22]} 40. Nc5 {[%clk 0:01:01]}  Ke8 {[%clk 0:00:16]} 41. Rxg7 {[%clk 0:01:00]}  Rb1+ {[%clk 0:00:11]} 42. Kg2 {[%clk 0:01:00]}  Rb2+ {[%clk 0:00:11]} 43. Kf1 {[%clk 0:01:00]}  Bg3 {[%clk 0:00:04]} 44. Ne4 {[%clk 0:00:56]}  Bxh4 {[%clk 0:00:02]} 45. Rxh7 {[%clk 0:00:56]}  Be7 {[%clk 0:00:02]} 46. Rh5 {[%clk 0:00:56]}  Rb6 {[%clk 0:00:02]} 47. Rxe5 {[%clk 0:00:56]}  Kf7 {[%clk 0:00:03]} 48. Rd5 {[%clk 0:00:56]}  Rb4 {[%clk 0:00:03]} 49. Kf2 {[%clk 0:00:55]}  Ke6 {[%clk 0:00:04]} 50. Ra5 {[%clk 0:00:54]}  Rb2+ {[%clk 0:00:04]} 51. Kg3 {[%clk 0:00:54]}  d3 {[%clk 0:00:04]} 52. f4 {[%clk 0:00:53]}  d2 {[%clk 0:00:04]} 53. f5+ {[%clk 0:00:53]}  Kf7 {[%clk 0:00:04]} 54. Rd5 {[%clk 0:00:53]}  Bb4 {[%clk 0:00:04]} 55. g5 {[%clk 0:00:52]}  Rb1 {[%clk 0:00:04]} 56. g6+ {[%clk 0:00:50]}  Ke8 {[%clk 0:00:04]} 57. Nxd2 {[%clk 0:00:45]}  Rd1 {[%clk 0:00:04]} 58. Re5+ {[%clk 0:00:45]}  Kf8 {[%clk 0:00:04]} 59. Ne4 {[%clk 0:00:45]}  Rd3+ {[%clk 0:00:04]} 60. Kf4 {[%clk 0:00:46]}  Be1 {[%clk 0:00:04]} 61. f6 {[%clk 0:00:45]}  Rd7 {[%clk 0:00:02]} 62. g7+ {[%clk 0:00:44]}  Kf7 {[%clk 0:00:02]} 63. Ng5+ {[%clk 0:00:44]}  Kg8 {[%clk 0:00:03]} 64. Re8# {[%clk 0:00:44]} 1-0


[Site "https://www.chess.com"]